Cogmind - Beta 15 @@@ ROGUE MODE // 2025.09.24 @ 14:58:41 Player: Reflectatory Result: Destroyed by G-47 Trooper with Particle Gun Performance ------------- Evolutions (3) 1500 Regions Visited (4) 800 Robots Destroyed (8) 40 Value Destroyed (67) 67 Prototype IDs (2) 40 Alien Tech Used (0) 0 Bonus (0) 0 TOTAL SCORE: 2447 Bonus ------- None Cogmind --------- Core Integrity 0/700 Matter 131/300 Energy 79/100 System Corruption 0% Temperature Cool (18) Movement Core (50) Location -7/Factory Parts ------- > --- POWER (2) -------- (None) > --- PROPULSION (6) --- (None) > --- UTILITY (3) ------ Advanced Visual Processing Unit Signal Interpreter Light Armor Plating > --- WEAPON (2) ------- (None) > --- INVENTORY (5) ---- Improved Deuterium Engine Signal Interpreter Medium Armor Plating Great Maul Peak State ------------ > --- POWER ------------ Light Ion Engine > --- PROPULSION ------- Flight Unit Flight Unit Flight Unit VTOL Module > --- UTILITY ---------- Signal Interpreter Improved Terrain Scanner Propulsion Shielding > --- WEAPON ----------- Great Maul > --- INVENTORY -------- Light Ion Engine Signal Interpreter Light Armor Plating Medium Armor Plating Mining Laser [Rating: 14] Favorites ----------- Power Light Ion Engine Engine Light Ion Engine Propulsion Compact Wheel Wheel Compact Wheel Hover Unit Improved Hover Unit Flight Unit Flight Unit Utility Small Storage Unit Device Improved Terrain Scanner Storage Small Storage Unit Processor Signal Interpreter Hackware System Shield Protection Utility Shielding Weapon Light Assault Rifle Energy Gun Medium Laser Ballistic Gun Light Assault Rifle Special Weapon Mining Laser Impact Weapon Hammer Build | -11 -10 -9 -8 -7 ------- Run | Yrd Mat Mat Mat Fac Slots Evolved 6 | . . 2 2 2 Power 1 | . . . 1 . Propulsion 4 | . . 2 . 2 Utility 1 | . . . 1 . Weapon . | . . . . . Parts Attached 24 | 7 4 1 7 5 Power 2 | 1 . . . 1 Engine 2 | 1 . . . 1 Core . | . . . . . Reactor . | . . . . . Propulsion 9 | 2 2 1 3 1 Treads . | . . . . . Leg . | . . . . . Wheel 2 | 2 . . . . Hover 1 | . . . . 1 Flight 6 | . 2 1 3 . Utility 8 | 2 1 . 2 3 Device 1 | 1 . . . . Storage 1 | 1 . . . . Processor 2 | . 1 . 1 . Hackware 1 | . . . . 1 Protection 3 | . . . 1 2 Artifact . | . . . . . Weapon 5 | 2 1 . 2 . Energy Gun 1 | 1 . . . . Energy Cannon . | . . . . . Ballistic Gun 1 | 1 . . . . Ballistic Cannon . | . . . . . Launcher . | . . . . . Special Weapon 1 | . . . 1 . Impact Weapon 2 | . 1 . 1 . Slashing Weapon . | . . . . . Piercing Weapon . | . . . . . Special Melee Weapon . | . . . . . Unidentified Prototypes . | . . . . . Parts Lost 11 | . . 1 6 4 Power 1 | . . . 1 . Propulsion 7 | . . 1 3 3 Utility 2 | . . . 1 1 Weapon 1 | . . . 1 . Highest Loss Streak 6 | . . 1 6 2 To Critical Strikes . | . . . . . Average Backups 5 | 6 2 3 4 5 Power . | . 1 1 1 1 Propulsion 2 | 3 . . . . Utility . | . . 1 2 3 Weapon 1 | 1 1 1 1 1 Tool/Special . | . . . . . Unused Backups 8 | . 5 . . 3 Power 1 | . . . . 1 Propulsion 4 | . 4 . . . Utility 2 | . . . . 2 Weapon 1 | . 1 . . . Tool/Special . | . . . . . Average Slot Usage (%) 54 | . 89 79 41 24 Engine 6 | . 14 11 3 . Wheel 1 | . 4 . . . Flight 14 | . 23 24 16 5 Device 6 | . 14 11 3 . Processor 8 | . 1 11 9 15 Ballistic Gun 6 | . 13 11 1 . Impact Weapon 6 | . 12 11 4 . Peak Build Rating 14 | 9 9 11 14 12 Average Rating 7 | 7 8 9 6 6 On Entrance 7 | . 9 9 10 8 Naked Turns . | . . . . . Heaviest Build 12 | 12 12 7 9 1 Greatest Support 26 | 26 26 12 16 7 Greatest Overweight (x) 2 | 1 2 . . . Average Overweight (x) . | . . . . . Largest Inventory Capacity 8 | 8 8 5 5 5 Average Capacity 7 | 7 5 5 5 5 Most Carried 8 | 8 8 4 5 5 Average Carried 5 | 6 2 3 4 4 Final Capacity 8 | 8 5 5 5 5 Final Carried 7 | 7 3 4 5 4 Class Distribution -------------------- 98% | Mutant Dominant Class ---------------- Mutant | -10/Materials Mutant | -9/Materials Mutant | -8/Materials Mutant | -7/Factory Resources | -11 -10 -9 -8 -7 ----------- Run | Yrd Mat Mat Mat Fac Matter Collected 270 | 233 27 . 10 . Remotely . | . . . . . Salvage Created 158 | 103 45 . 10 . Parts 12 | 8 4 . . . Haulers Intercepted . | . . . . . Recyclers Shooed . | . . . . . Parts Field Recycled . | . . . . . Retrieved Matter . | . . . . . Parts Self-Destructed . | . . . . . Prevented . | . . . . . Kills | -11 -10 -9 -8 -7 ------- Run | Yrd Mat Mat Mat Fac Combat Hostiles Destroyed 4 | . 3 . 1 . Melee 2 | . 1 . 1 . Guns 2 | . 2 . . . Classes Destroyed 3 | 2 1 . . . Tunneler 3 | 3 . . . . Recycler 1 | 1 . . . . Swarmer 4 | . 3 . 1 . Best Kill Streak 3 | 2 3 . 1 . Combat Bots Only 3 | . 3 . 1 . Max Kills in Single Turn 1 | 1 1 . 1 . Gunslinging . | . . . . . Exploded . | . . . . . Melee 1 | . 1 . 1 . Uniques/NPCs Destroyed . | . . . . . Combat | -11 -10 -9 -8 -7 -------- Run | Yrd Mat Mat Mat Fac Hostile Shots Fired 298 | . 22 12 106 158 Missed 149 | . 6 5 54 84 Hits 149 | . 16 7 52 74 Melee 2 | . . . 1 1 Projectile 147 | . 16 7 51 73 Critical Strikes 1 | . . . 1 . Damage Taken 1615 | 4 143 72 569 827 Core 1128 | . 51 23 342 712 Absorbed by Shields . | . . . . . Redirected to Shielding 23 | . . . 23 . Core Remaining (%) 77 | 100 79 94 37 . Volleys Fired 22 | 19 3 . . . Largest 2 | 2 1 . . . Hottest 70 | 70 20 . . . Shots Fired 41 | 38 3 . . . Gun 41 | 38 3 . . . Cannon . | . . . . . Launcher . | . . . . . Special . | . . . . . Kinetic 22 | 19 3 . . . Thermal 19 | 19 . . . . Explosive . | . . . . . Electromagnetic . | . . . . . Robot Hit Streak 4 | 4 2 . . . Robot Miss Streak 2 | 2 1 . . . Penetration Max . | . . . . . Secondary Targets . | . . . . . Shots Hit Robots 28 | 23 4 . 1 . Core Hits 11 | 7 2 . 1 1 Critical Kills . | . . . . . Critical Parts Destroyed . | . . . . . Critical Strikes . | . . . . . Melee Attacks 6 | . 5 . 1 . Impact 6 | . 5 . 1 . Slashing . | . . . . . Piercing . | . . . . . Sneak Attacks . | . . . . . Combat Hostiles . | . . . . . Follow-up Attacks . | . . . . . Damage Inflicted 361 | 244 75 . 36 6 Guns 255 | 235 20 . . . Cannons . | . . . . . Explosions . | . . . . . Melee 91 | . 55 . 36 . Ramming 15 | 9 . . . 6 Kinetic 105 | 85 20 . . . Thermal 150 | 150 . . . . Explosive . | . . . . . Electromagnetic . | . . . . . Impact 91 | . 55 . 36 . Slashing . | . . . . . Piercing . | . . . . . Highest Corruption 1 | . . . 1 . Average Corruption 1 | . . . 1 . Corruption Purged . | . . . . . Corruption Blocked . | . . . . . Effects 1 | . . . 1 . Parts Rejected 1 | . . . 1 . Overload Shots . | . . . . . Overflow Damage 15 | . 15 . . . Projectiles . | . . . . . Explosions . | . . . . . Melee 15 | . 15 . . . Knockbacks . | . . . . . Impact . | . . . . . Kinetic . | . . . . . Secondary . | . . . . . Self-Inflicted Damage 7 | 4 . . . 3 Shots . | . . . . . Rammed 2 | 1 . . . 1 Targets Rammed 2 | 1 . . . 1 Kicked . | . . . . . Crushed . | . . . . . Highest Temperature 80 | 80 . . . . Average Temperature 35 | 35 . . . . Received Heat Transfer 441 | . 18 30 117 276 Siege Activations . | . . . . . Martial Activations . | . . . . . Shielding Activations . | . . . . . Robots Disrupted . | . . . . . Combat Hostiles . | . . . . . Robots Corrupted . | . . . . . Combat Hostiles . | . . . . . Parts Fried 1 | . 1 . . . Impact Corruptions 2 | . 2 . . . Robots Melted . | . . . . . Combat Hostiles . | . . . . . Parts Melted . | . . . . . Heat Transferred 444 | 444 . . . . Parts Sabotaged . | . . . . . Parts Stolen . | . . . . . Parts Stripped . | . . . . . Power Chain Reactions . | . . . . . Alert | -11 -10 -9 -8 -7 ------- Run | Yrd Mat Mat Mat Fac Maximum Alert Level 1 | . . . 1 . Low Security (%) 99 | 100 100 100 94 100 Level 1 . | . . . 5 . Level 2 . | . . . . . Level 3 . | . . . . . Level 4 . | . . . . . Level 5 . | . . . . . High Security . | . . . . . Max Security . | . . . . . Peak Influence 255 | 7 60 15 255 132 Initial 115 | . . 3 . 115 Average 12 | . 12 5 59 71 Influence Increases 797 | 20 105 26 362 284 Destroy 0b10 Robot/C 80 | . 60 . 20 . Destroy 0b10 Robot/NC 20 | 20 . . . . Destroy Leader 20 | . 10 . 10 . Successful Hack 62 | . 5 11 17 29 Partial Spotted 75 | . . 15 45 15 Lose Combat Pursuer 540 | . 30 . 270 240 Influence Decreases 665 | 20 96 35 107 407 Entered New Map 146 | . . 6 . 140 Time Decay 422 | 20 96 19 57 230 Lost Part 97 | . . 10 50 37 Squads Dispatched 11 | . 3 . 4 4 Investigation 6 | . 2 . 1 3 Extermination 1 | . . . . 1 Reinforcement 4 | . 1 . 3 . Assault . | . . . . . Garrison . | . . . . . Intercept . | . . . . . Searches Triggered . | . . . . . Construction Impeded . | . . . . . Haulers Reinforced . | . . . . . Active Scanning Responses . | . . . . . Cargo Convoy Interrupts . | . . . . . Stealth | -11 -10 -9 -8 -7 --------- Run | Yrd Mat Mat Mat Fac Distress Signals 2 | . 1 . . 1 Communications Jammed . | . . . . . Distress Signals . | . . . . . Times Spotted 85 | . 13 11 35 26 Peak Tracking Total 19 | . 6 11 19 7 Tactical Retreats 15 | . 1 . 6 8 Traps | -11 -10 -9 -8 -7 ------- Run | Yrd Mat Mat Mat Fac Traps Triggered 5 | . 2 . 1 2 Indirectly . | . . . . . Trap Hack Attempts . | . . . . . Triggered . | . . . . . Disarmed . | . . . . . Reprogrammed . | . . . . . Reused . | . . . . . Traps Extracted . | . . . . . Installed . | . . . . . Triggered . | . . . . . Machines | -11 -10 -9 -8 -7 ---------- Run | Yrd Mat Mat Mat Fac Machines Disabled . | . . . . . Max in Single Turn . | . . . . . Machines Repaired . | . . . . . Machines Dismantled . | . . . . . Machines Sabotaged . | . . . . . Overloaded Fab Kills . | . . . . . Hacking | -11 -10 -9 -8 -7 --------- Run | Yrd Mat Mat Mat Fac Machines Accessed 21 | . 4 2 6 9 Terminals 19 | . 4 2 6 7 Fabricators 2 | . . . . 2 Repair Stations . | . . . . . Recycling Units . | . . . . . Scanalyzers . | . . . . . Garrison Access . | . . . . . Total Hacks 61 | . 9 6 23 23 Successful 21 | . 3 2 8 8 Failed 40 | . 6 4 15 15 Catastrophic 9 | . 1 . 4 4 Database Lockouts . | . . . . . Manual 58 | . 9 6 23 20 Terminals 56 | . 9 6 23 18 Fabricators 5 | . . . . 5 Repair Stations . | . . . . . Recycling Units . | . . . . . Scanalyzers . | . . . . . Garrison Access . | . . . . . Terminal Hacks 5 | . 1 . 3 1 Part Schematic 2 | . 1 . 1 . Prototype ID Bank 1 | . . . 1 . Terminal Index 2 | . . . 1 1 Fabricator Hacks 2 | . . . . 2 Load Schematic 1 | . . . . 1 Build 1 | . . . . 1 Repair Station Hacks . | . . . . . Recycling Unit Hacks . | . . . . . Scanalyzer . | . . . . . Garrison Access Hacks . | . . . . . Unauthorized Hacks 14 | . 2 2 5 5 Terminals 14 | . 2 2 5 5 Track 3 | . . . 2 1 Assimilate 1 | . . 1 . . Botnet 9 | . 2 1 3 3 Operators 1 | . . . . 1 Fabricators . | . . . . . Repair Stations . | . . . . . Recycling Units . | . . . . . Scanalyzers . | . . . . . Garrison Access . | . . . . . Data Cores Recovered . | . . . . . Used . | . . . . . Hacking Detections 20 | . 4 2 5 9 Full Trace Events 6 | . 2 1 . 3 Feedback Events . | . . . . . Feedback Blocked . | . . . . . Robot Schematics Acquired . | . . . . . Robots Built . | . . . . . Authchips . | . . . . . Time . | . . . . . Total Robot Build Rating . | . . . . . Part Schematics Acquired 2 | . 1 . 1 . Parts Built 1 | . . . . 1 Authchips . | . . . . . Time 73 | . . . . 73 Total Part Build Rating 3 | . . . . 3 Parts Repaired . | . . . . . Time . | . . . . . Parts Recycled . | . . . . . Recycled Matter . | . . . . . Retrieved Matter . | . . . . . Retrieved Components . | . . . . . Parts Scanalyzed . | . . . . . Part Schematics Acquired . | . . . . . Parts Damaged . | . . . . . Bothacking | -11 -10 -9 -8 -7 ------------ Run | Yrd Mat Mat Mat Fac Used RIF Installer . | . . . . . Robots Hacked . | . . . . . Non-combat . | . . . . . Combat . | . . . . . Robot Hacks Applied . | . . . . . Relay Couplers Released . | . . . . . Fabnet Peak Effective % . | . . . . . Robots Rewired . | . . . . . Allies Hacked . | . . . . . Hacks Repelled . | . . . . . Allies | -11 -10 -9 -8 -7 -------- Run | Yrd Mat Mat Mat Fac Total Allies . | . . . . . Largest Group . | . . . . . Highest-Rated Group . | . . . . . Highest-Rated Ally . | . . . . . Total Orders . | . . . . . Ally Attacks . | . . . . . Total Damage . | . . . . . Kills . | . . . . . Allies Corrupted . | . . . . . Allies Melted . | . . . . . Intel | -11 -10 -9 -8 -7 ------- Run | Yrd Mat Mat Mat Fac Active Infowar (turns) 2247 | 1212 434 65 48 488 Optics 493 | . . . 5 488 Terrain 1754 | 1212 434 65 43 . Robot Analysis Total . | . . . . . Derelict Logs Recovered . | . . . . . Drone Launches . | . . . . . Drone Recoveries . | . . . . . Exploration | -11 -10 -9 -8 -7 ------------- Run | Yrd Mat Mat Mat Fac Turns Passed 3917 | 2792 434 65 138 488 Spaces Moved 2837 | 997 315 166 350 1009 Core 549 | 15 . . 3 531 Treads . | . . . . . Legs . | . . . . . Wheels 1027 | 982 45 . . . Hover 88 | . . . . 88 Flight 1173 | . 270 166 347 390 Fastest Speed 29 | 50 37 32 29 34 Average Speed 59 | 90 45 35 34 46 Slowest Speed 205 | 100 205 37 50 60 Overloaded Moves 73 | . . . 73 . Propulsion Burnouts . | . . . . . Robots Hopped 21 | . 3 1 17 . Potential Cave-ins . | . . . . . Cave-ins Triggered . | . . . . . Exploration Rate (%) 52 | 92 53 21 60 37 Regions Visited 4 Branch Regions . Pre-discovered Areas . | . . . . . Known Exits Taken 3 | . 1 1 1 . Unknown Exits Taken 1 | 1 . . . . Scrap Searched . | . . . . . Spaces Dug . | . . . . . Terrain Destroyed . | . . . . . Melee . | . . . . . Projectile . | . . . . . AOE . | . . . . . Terrain Rammed . | . . . . . Walls Destroyed . | . . . . . Machines Disabled . | . . . . . Actions | -11 -10 -9 -8 -7 --------- Run | Yrd Mat Mat Mat Fac Total 4979 | 2853 588 169 345 1024 Wait 2088 | 1822 257 3 . 6 Move 2794 | 996 309 163 317 1009 Hop 18 | . 2 1 15 . Pick Up 12 | 8 1 1 1 1 Fast Attach 19 | 6 3 1 6 3 Attach 2 | 1 . . . 1 Detach . | . . . . . Swap 7 | . 4 . 2 1 Drop 9 | . 4 . 3 2 Fire 22 | 19 3 . . . Melee 6 | . 5 . 1 . Ram 2 | 1 . . . 1 Kick . | . . . . . Crush . | . . . . . Escape Stasis . | . . . . . Rewire . | . . . . . Trap . | . . . . . Miscellaneous . | . . . . . Route ------- -11/Scrapyard -10/Materials (discovered 3 exits: *Mat / [*Min] / [*Sub]) -9/Materials -8/Materials -7/Factory (discovered 1 exit: [*Fac]) History --------- Turn | Location | Event 2 | -11/Scrapyard | Met Revision 17 13 | -11/Scrapyard | Discovered new exit (range 15) 2793 | -11/Scrapyard | Entered Materials 2794 | -10/Materials | Build established: Mutant 2924 | -10/Materials | Discovered new exit (range 9) 3148 | -10/Materials | Discovered new exit (range 16) 3174 | -10/Materials | Discovered new exit (range 5) 3186 | -10/Materials | Identified exit to Materials 3227 | -10/Materials | Entered another Materials area 3227 | -9/Materials | Evolved 2 slots: Propulsion x2 3290 | -9/Materials | Discovered new exit (range 7) 3292 | -9/Materials | Identified exit to Materials 3292 | -9/Materials | Entered another Materials area 3292 | -8/Materials | Evolved 2 slots: Power x1, Utility x1 3408 | -8/Materials | Core integrity fell below 50% 3410 | -8/Materials | Lost 6 parts (1p3n1u1w) 3421 | -8/Materials | Discovered new exit (range 10) 3429 | -8/Materials | Identified exit to Factory 3430 | -8/Materials | Entered Factory 3430 | -7/Factory | Evolved 2 slots: Propulsion x2 3510 | -7/Factory | Fabricated Hacking Suite? 3801 | -7/Factory | Core integrity fell below 50% 3846 | -7/Factory | Core integrity fell below 20% 3911 | -7/Factory | Discovered new exit (range 20) 3918 | -7/Factory | Destroyed by G-47 Trooper with Particle Gun Last Messages --------------- floor. L-41 Fighter emerges from a hatch in the floor. G-47 Trooper emerges from a hatch in the floor. Acquired Imp. Hover Unit. System Shield destroyed. Imp. Hover Unit destroyed. Slug penetrates K-01 Serf. K-01 Serf destroyed. Triggered Heavy Explosive Trap. An explosion rips through the floor. K-01 Serf cleans the Matter Pump. Connecting with Terminal... >>Trojan(Botnet) Trojan loaded successfully. Testing... Terminal linked with 2 systems. Awaiting botnet instructions. ALERT: Suspicious activity at Terminal F003. Dispatching Investigation squad. EXIT=FOUND Map ----- +----------------------------------------------------+ | ????????????????????????# # """""" | | ????????????????????????# # """""" | | ????????????????????????# # """""" " | | ????????????????????????# # """""" " | | ????????#######?????????# # " | | ????????# ! ?######## # """""" T | | ????????# ?# / """""" " | | ????????# """" # # """""" " | | ????????# """" # # """""" " | | ????????#! """" + # | | ????????# """" # ############# | | ????????# """" # #### ########????? | | ????????# """" ?# #??# | | ????????#! ?# #??# ##### ####????? | | ????############## ####+#####+##??????? | | # # g# ?????? | | # + g/ """ ??????????? | | # !![ # g# """ ??????????? | | # !][ # # """ ??????????? | | # ![[ ?# # ??????????? | | # ?# #[ """ "?????????? | | # ??# # ! """ "?????????? | | ?##############??# # """???????????? | | ?????????????????# # ???????????? | | ?????????????????# ######?#???????????? | | ?????????????????#@ #??????????????????? | | ?????????????????# #??????????????????? | | ?????????????????# #??????????????????? | | ?????????????????# #??????????????????? | | ?????????????????+ #??????????????????? | | ?????????????????# +??????????????????? | | ?????????????????# < #??????????????????? | | ?????????????????# #??????????????????? | | ?????????????????# #??????????????????? | | ?????????????????#######??????????????????? | | ??????????????????????????????????????????? | | ??????????????????????????????????????????? | | ??????????????????????????????????????????? | | ??????????????????????????????????????????? | | ??????????????????????????????????????????? | | ??????????????????????????????????????????? | | ??????????????????????????????????????????? | | ??????????????????????????????????????????? | | ??????????????????????????????????????????? | | ??????????????????????????????????????????? | | ??????????????????????????????????????????? | | ??????????????????????????????????????????? | | ??????????????????????????????????????????? | | ??????????????????????????????????????????? | | ??????????????????????????????????????????? | +----------------------------------------------------+ Best States ------------- Heat Dissipation 34 Energy Generation 10 Energy Capacity 125 Matter Stores 263 Matter Capacity 300 Sight Range 20 Terrain Scan Range 16 Terrain Scan Density 10 Propulsion Shielding 33 Utility Shielding 33 Evasion (%) 64 Defensive Hacking 10 Item Schematics ----------------- Flight Unit | -10/Materials | Hacked Hacking Suite | -8/Materials | Hacked Robot Schematics ------------------ None Fabricated ------------ Hacking Suite | x1 | -7/Factory Repaired ---------- Nothing Alien Tech Used ----------------- None Achievements -------------- None Challenges ------------ None Game ------ Seed SmartbombCommAutocannon Manual? 0 Play Time 00:33:58 Cumulative 28.8 hours Start 2025.08.30 @ 13:37:41 End 2025.09.24 @ 14:58:41 Sessions 3 Manual Loads 0 Difficulty Rogue Special Mode None Game No. 31 Rogue 31 Adventurer 0 Explorer 0 Win Type - Total 0 Types 0/0/0/0/0/0/0/0/0/0 Lore% 32 Gallery% 32 Achievement% 33 Wizard Run 0 Options --------- Layout 1 ASCII 0 Keyboard 0 Movement Numpad Keybinds 0 Fullscreen 1 Font 32/SmallcapsGlow Map View 50x35 Zoom Use 0% Tactical HUD 0 Map Filters NONE Filters NONE Steam 1 RUN: bbc1a24c-68f3-4d13-b880-d6a8ea83a554